Cogmind - Beta 16 @@@ ROGUE MODE // 2025.11.21 @ 20:08:56 Player: opaguck Result: Destroyed by L-31 Rogue with Katana Performance ------------- Evolutions (2) 1000 Regions Visited (4) 800 Robots Destroyed (30) 150 Value Destroyed (927) 927 Prototype IDs (3) 60 Alien Tech Used (0) 0 Bonus (36) 36 TOTAL SCORE: 2973 Bonus ------- High Alert Combat Kills 11 Follower Combat Kills 25 Cogmind --------- Core Integrity 0/550 Matter 62/300 Energy 100/100 System Corruption 2% Temperature Cool (0) Movement Core (50) Location -8/Materials Parts ------- > --- POWER (1) -------- (None) > --- PROPULSION (4) --- (None) > --- UTILITY (4) ------ Visual Processing Unit Improved Power Shielding > --- WEAPON (2) ------- (None) > --- INVENTORY (5) ---- Deuterium Engine Terrain Scan Processor Peak State ------------ > --- POWER ------------ Deuterium Engine > --- PROPULSION ------- Wheel Wheel Wheel Armored Wheel > --- UTILITY ---------- Heat Sink Weight Redist. System Visual Processing Unit Recalibrator > --- WEAPON ----------- Gatling Laser EM Pulse Cannon > --- INVENTORY -------- Deuterium Engine Airjet Weight Redist. System Terrain Scan Processor Medium Armor Plating [Rating: 25] Favorites ----------- Power Light Ion Engine Engine Light Ion Engine Power Core Light Nuclear Core Propulsion Hover Unit Leg Aluminum Leg Wheel Wheel Hover Unit Hover Unit Flight Unit VTOL Module Utility Sensor Array Device Sensor Array Processor Visual Processing Unit Hackware Hacking Suite Protection Light Armor Plating Weapon Datajack Energy Gun Gatling Laser Energy Cannon EM Pulse Cannon Ballistic Cannon Light Cannon Launcher Missile Launcher Special Weapon Mining Laser Special Melee Weapon Datajack Build | -11 -10 -10 -9 -8 ------- Run | Yrd Mat Min Mat Mat Slots Evolved 4 | . . . 2 2 Power . | . . . . . Propulsion 2 | . . . 2 . Utility 2 | . . . . 2 Weapon . | . . . . . Parts Attached 43 | 5 8 2 5 23 Power 4 | 1 . 1 . 2 Engine 3 | 1 . . . 2 Core 1 | . . 1 . . Reactor . | . . . . . Propulsion 16 | 2 4 . 4 6 Treads . | . . . . . Leg 2 | 2 . . . . Wheel 5 | . . . . 5 Hover 5 | . 4 . . 1 Flight 4 | . . . 4 . Utility 11 | . 2 . . 9 Device 6 | . 1 . . 5 Storage . | . . . . . Processor 1 | . . . . 1 Hackware 1 | . 1 . . . Protection 3 | . . . . 3 Artifact . | . . . . . Weapon 12 | 2 2 1 1 6 Energy Gun 3 | 2 . . . 1 Energy Cannon 2 | . . . . 2 Ballistic Gun . | . . . . . Ballistic Cannon 1 | . 1 . . . Launcher 3 | . . . . 3 Special Weapon 1 | . . . 1 . Impact Weapon . | . . . . . Slashing Weapon . | . . . . . Piercing Weapon . | . . . . . Special Melee Weapon 2 | . 1 1 . . Unidentified Prototypes 1 | . . . 1 . Parts Lost 25 | . 1 . 1 23 Power 3 | . . . . 3 Propulsion 6 | . . . . 6 Utility 7 | . . . . 7 Weapon 9 | . 1 . 1 7 Highest Loss Streak 11 | . 1 . 1 11 To Critical Strikes . | . . . . . Average Backups 3 | 1 3 5 2 3 Power . | . 1 1 . . Propulsion . | . . 2 . . Utility 1 | . 1 1 1 2 Weapon . | . 1 1 . . Tool/Special . | . . . . . Unused Backups 6 | . . 1 2 3 Power 2 | . . . 1 1 Propulsion . | . . . . . Utility 4 | . . 1 1 2 Weapon . | . . . . . Tool/Special . | . . . . . Average Slot Usage (%) 82 | . 75 97 99 73 Engine 7 | . 14 9 . 5 Core 2 | . . 4 11 1 Leg 3 | . 23 . . . Wheel 5 | . . . . 12 Hover 10 | . 3 28 22 . Flight 6 | . . . 21 8 Device 12 | . 4 14 11 15 Processor 4 | . . . . 9 Hackware 6 | . 2 14 11 1 Protection 1 | . . . . 3 Energy Gun 6 | . 20 . . 6 Energy Cannon 1 | . . . . 2 Ballistic Cannon 5 | . 4 14 6 . Launcher 2 | . . . . 4 Special Melee Weapon 4 | . 1 11 11 . Peak Build Rating 25 | 5 9 11 18 25 Average Rating 13 | 3 5 9 15 19 On Entrance 8 | . 5 8 11 17 Avg Prop Armor Cover (%) 9 | . . . . 9 Naked Turns . | . . . . . Heaviest Build 25 | 6 9 10 10 25 Greatest Support 44 | 20 20 12 24 44 Greatest Overweight (x) 6 | 1 1 . . 6 Average Overweight (x) . | . . . . 1 Largest Inventory Capacity 5 | 5 5 5 5 5 Average Capacity 5 | 5 5 5 5 5 Most Carried 5 | 3 5 5 5 5 Average Carried 3 | 1 3 4 2 3 Final Capacity 5 | 5 5 5 5 5 Final Carried 5 | 3 5 5 1 2 Class Distribution -------------------- 69% | Mutant 17% | Scavenger-Mutant 12% | Sprinter Dominant Class ---------------- Mutant | -10/Materials Mutant | -10/Mines Sprinter | -9/Materials Mutant | -8/Materials Resources | -11 -10 -10 -9 -8 ----------- Run | Yrd Mat Min Mat Mat Matter Collected 539 | 250 . 133 . 156 Remotely . | . . . . . Salvage Created 819 | 114 11 29 . 665 Parts 54 | 3 5 1 . 45 Haulers Intercepted 1 | . . . . 1 Recyclers Shooed 3 | . . 1 . 2 Parts Field Recycled . | . . . . . Retrieved Matter . | . . . . . Parts Self-Destructed . | . . . . . Prevented . | . . . . . Parts Restored . | . . . . . Kills | -11 -10 -10 -9 -8 ------- Run | Yrd Mat Min Mat Mat Combat Hostiles Destroyed 16 | . . 1 . 15 Guns 6 | . . . . 6 Cannons 3 | . . 1 . 2 AOE 7 | . . . . 7 Classes Destroyed 12 | 2 1 1 . 8 Worker 3 | . . . . 3 Builder 3 | . . . . 3 Tunneler 2 | 1 . . . 1 Hauler 1 | . . . . 1 Recycler 3 | 1 . . . 2 Operator 1 | . 1 . . . Watcher 1 | . . . . 1 Grunt 9 | . . 1 . 8 Brawler 1 | . . . . 1 Duelist 1 | . . . . 1 Protector 1 | . . . . 1 Sentry 4 | . . . . 4 Best Kill Streak 11 | 2 1 1 . 11 Combat Bots Only 9 | . . 1 . 9 Max Kills in Single Turn 5 | 1 1 1 . 5 Gunslinging . | . . . . . Exploded 3 | . . . . 3 Melee . | . . . . . Uniques/NPCs Destroyed . | . . . . . Combat | -11 -10 -10 -9 -8 -------- Run | Yrd Mat Min Mat Mat Hostile Shots Fired 125 | . 11 10 12 92 Missed 43 | . 7 4 7 25 Hits 82 | . 4 6 5 67 Melee 2 | . . . . 2 Projectile 80 | . 4 6 5 65 Critical Strikes 4 | . . . . 4 Damage Taken 2047 | . 56 96 48 1847 Core 611 | . . 33 . 578 Absorbed by Shields . | . . . . . Redirected to Shielding 20 | . . . . 20 Core Remaining (%) 95 | 100 . 86 100 . Volleys Fired 51 | 5 4 5 5 32 Largest 2 | 2 2 1 1 2 Hottest 143 | 90 90 30 100 143 Shots Fired 81 | 10 7 5 5 54 Gun 38 | 10 5 . . 23 Cannon 24 | . 2 5 . 17 Launcher 14 | . . . . 14 Special 5 | . . . 5 . Kinetic 7 | . 2 5 . . Thermal 43 | 10 5 . 5 23 Explosive 14 | . . . . 14 Electromagnetic 17 | . . . . 17 Robot Hit Streak 8 | 2 1 2 . 8 Robot Miss Streak 6 | 1 4 3 . 6 Penetration Max . | . . . . . Secondary Targets . | . . . . . Shots Hit Robots 57 | 7 2 4 3 41 Core Hits 60 | 3 1 1 . 55 Critical Kills . | . . . . . Critical Parts Destroyed . | . . . . . Critical Strikes 1 | . . . . 1 Corrupt 1 | . . . . 1 Melee Attacks 5 | . . 2 3 . Impact . | . . . . . Slashing . | . . . . . Piercing . | . . . . . Sneak Attacks 5 | . . 2 3 . Combat Hostiles . | . . . . . Follow-up Attacks . | . . . . . Damage Inflicted 2982 | 79 35 49 . 2819 Guns 490 | 79 . . . 411 Cannons 353 | . 35 32 . 286 Explosions 2122 | . . . . 2122 Melee . | . . . . . Ramming 17 | . . 17 . . Kinetic 67 | . 35 32 . . Thermal 785 | 79 . . . 706 Explosive 1827 | . . . . 1827 Electromagnetic 286 | . . . . 286 Impact . | . . . . . Slashing . | . . . . . Piercing . | . . . . . Highest Corruption 2 | . . . . 2 Average Corruption 1 | . . . . 1 Corruption Purged . | . . . . . Corruption Blocked . | . . . . . Effects 8 | . . . . 8 Message Errors 3 | . . . . 3 Matter Fused 2 | . . . . 2 Parts Rejected 1 | . . . . 1 Data Loss (minor) 1 | . . . . 1 Weapon Failures 1 | . . . . 1 Overload Shots . | . . . . . Overflow Damage 186 | . . . . 186 Projectiles . | . . . . . Explosions 186 | . . . . 186 Melee . | . . . . . Knockbacks . | . . . . . Impact . | . . . . . Kinetic . | . . . . . Secondary . | . . . . . Self-Inflicted Damage 376 | . . 8 . 368 Shots 7 | . . . . 7 Rammed 2 | . . 2 . . Targets Rammed 2 | . . 2 . . Kicked . | . . . . . Crushed . | . . . . . Highest Temperature 343 | 120 30 10 164 343 Average Temperature 81 | 54 13 7 111 86 Received Heat Transfer 492 | . 30 48 18 396 Effects 2 | . . . . 2 Energy Bleed 1 | . . . . 1 Damage (minor) 1 | . . . . 1 Siege Activations . | . . . . . Martial Activations . | . . . . . Shielding Activations . | . . . . . Robots Disrupted . | . . . . . Combat Hostiles . | . . . . . Robots Corrupted . | . . . . . Combat Hostiles . | . . . . . Parts Fried 1 | . . . . 1 Impact Corruptions . | . . . . . Robots Melted . | . . . . . Combat Hostiles . | . . . . . Parts Melted 1 | . . . . 1 Heat Transferred 1334 | 211 . . . 1123 Parts Sabotaged . | . . . . . Parts Stolen . | . . . . . Parts Stripped . | . . . . . Power Chain Reactions 1 | . . . . 1 Alert | -11 -10 -10 -9 -8 ------- Run | Yrd Mat Min Mat Mat Maximum Alert Level 2 | . . . . 2 Low Security (%) 95 | 100 100 100 100 90 Level 1 3 | . . . . 8 Level 2 . | . . . . 1 Level 3 . | . . . . . Level 4 . | . . . . . Level 5 . | . . . . . High Security . | . . . . . Max Security . | . . . . . Peak Influence 409 | 5 5 37 45 409 Initial 25 | . . . 9 25 Average 40 | . . 9 3 84 Influence Increases 974 | 10 5 112 72 775 Destroy 0b10 Robot/C 320 | . . 40 . 280 Destroy 0b10 Robot/NC 75 | 10 5 . . 60 Destroy Leader 84 | . . 10 . 74 Allied During Kill 2 | . . 2 . . Successful Hack 10 | . . . 10 . Disable Machine 30 | . . . . 30 Anti-Garrison Action 150 | . . . . 150 Destroy Structure 123 | . . . 2 121 Lose Combat Pursuer 180 | . . 60 60 60 Influence Decreases 593 | 10 5 87 37 454 Entered New Map 51 | . . . 16 35 Time Decay 340 | 10 5 60 21 244 Lost Part 175 | . . . . 175 Lost Ally 27 | . . 27 . . Squads Dispatched 8 | . 2 . 1 5 Investigation 1 | . 1 . . . Extermination . | . . . . . Reinforcement 4 | . 1 . 1 2 Assault 2 | . . . . 2 Garrison 1 | . . . . 1 Intercept . | . . . . . Searches Triggered . | . . . . . Construction Impeded 1 | . . . . 1 Haulers Reinforced . | . . . . . Active Scanning Responses . | . . . . . Cargo Convoy Interrupts . | . . . . . Stealth | -11 -10 -10 -9 -8 --------- Run | Yrd Mat Min Mat Mat Distress Signals 3 | . . . 2 1 Communications Jammed . | . . . . . Distress Signals . | . . . . . Times Spotted 63 | . 7 6 17 33 Peak Tracking Total 15 | . 5 2 15 7 Tactical Retreats 7 | . . 3 1 3 Traps | -11 -10 -10 -9 -8 ------- Run | Yrd Mat Min Mat Mat Traps Triggered 3 | . 1 . . 2 Indirectly . | . . . . . Trap Hack Attempts . | . . . . . Triggered . | . . . . . Disarmed . | . . . . . Reprogrammed . | . . . . . Reused . | . . . . . Traps Extracted . | . . . . . Installed . | . . . . . Triggered . | . . . . . Machines | -11 -10 -10 -9 -8 ---------- Run | Yrd Mat Min Mat Mat Machines Disabled 3 | . . . . 3 Max in Single Turn 2 | . . . . 2 Garrison Access 1 | . . . . 1 Machines Repaired . | . . . . . Machines Dismantled . | . . . . . Machines Sabotaged . | . . . . . Overloaded Fab Kills . | . . . . . Hacking | -11 -10 -10 -9 -8 --------- Run | Yrd Mat Min Mat Mat Machines Accessed 3 | . 1 . 2 . Terminals 3 | . 1 . 2 . Fabricators . | . . . . . Repair Stations . | . . . . . Recycling Units . | . . . . . Scanalyzers . | . . . . . Garrison Access . | . . . . . Total Hacks 8 | . 1 . 7 . Successful 5 | . 1 . 4 . Failed 3 | . . . 3 . Catastrophic 1 | . . . 1 . Database Lockouts . | . . . . . Manual . | . . . . . Terminals 8 | . 1 . 7 . Fabricators . | . . . . . Repair Stations . | . . . . . Recycling Units . | . . . . . Scanalyzers . | . . . . . Garrison Access . | . . . . . Terminal Hacks 5 | . 1 . 4 . Prototype ID Bank 1 | . . . 1 . Dispatch Records 1 | . . . 1 . Transport Status 1 | . . . 1 . Recall Investigation 1 | . . . 1 . Zone Layout 1 | . 1 . . . Fabricator Hacks . | . . . . . Repair Station Hacks . | . . . . . Recycling Unit Hacks . | . . . . . Scanalyzer . | . . . . . Garrison Access Hacks . | . . . . . Unauthorized Hacks . | . . . . . Terminals . | . . . . . Fabricators . | . . . . . Repair Stations . | . . . . . Recycling Units . | . . . . . Scanalyzers . | . . . . . Garrison Access . | . . . . . Data Cores Recovered . | . . . . . Used . | . . . . . Hacking Detections 1 | . . . 1 . Full Trace Events . | . . . . . Feedback Events . | . . . . . Feedback Blocked . | . . . . . Robot Schematics Acquired . | . . . . . Robots Built . | . . . . . Authchips . | . . . . . Time . | . . . . . Total Robot Build Rating . | . . . . . Part Schematics Acquired . | . . . . . Parts Built . | . . . . . Authchips . | . . . . . Time . | . . . . . Total Part Build Rating . | . . . . . Part Studies Acquired . | . . . . . Parts Repaired . | . . . . . Time . | . . . . . Parts Recycled . | . . . . . Recycled Matter . | . . . . . Retrieved Matter . | . . . . . Retrieved Components . | . . . . . Parts Scanalyzed . | . . . . . Part Schematics Acquired . | . . . . . Parts Damaged . | . . . . . Bothacking | -11 -10 -10 -9 -8 ------------ Run | Yrd Mat Min Mat Mat Used RIF Installer . | . . . . . Robots Hacked 3 | . . 1 2 . Non-combat 3 | . . 1 2 . Combat . | . . . . . Robot Hacks Applied 4 | . . 1 3 . no_distress 3 | . . 1 2 . check_alert 1 | . . . 1 . Relay Couplers Released 2 | . . . . 2 Machine Destruction 2 | . . . . 2 Fabnet Peak Effective % . | . . . . . Robots Rewired . | . . . . . Allies Hacked . | . . . . . Hacks Repelled . | . . . . . Allies | -11 -10 -10 -9 -8 -------- Run | Yrd Mat Min Mat Mat Total Allies 3 | . . 3 . . Largest Group 3 | . . 3 . . Highest-Rated Group 40 | . . 40 . . Highest-Rated Ally 16 | . . 16 . . Total Orders . | . . . . . Ally Attacks 15 | . . 15 . . Total Damage 136 | . . 136 . . Kills 1 | . . 1 . . Allies Corrupted . | . . . . . Allies Melted . | . . . . . Intel | -11 -10 -10 -9 -8 ------- Run | Yrd Mat Min Mat Mat Active Infowar (turns) 1020 | . 65 295 119 541 Optics 541 | . . . . 541 Sensors 575 | . 65 295 119 96 Robot Analysis Total . | . . . . . Derelict Logs Recovered 1 | . . 1 . . Drone Launches . | . . . . . Drone Recoveries . | . . . . . Exploration | -11 -10 -10 -9 -8 ------------- Run | Yrd Mat Min Mat Mat Turns Passed 1219 | 90 174 295 119 541 Spaces Moved 1163 | 65 141 430 207 320 Core 145 | 36 . . . 109 Treads . | . . . . . Legs 135 | 29 106 . . . Wheels 144 | . . . . 144 Hover 548 | . 35 430 83 . Flight 191 | . . . 124 67 Fastest Speed 27 | 50 56 56 27 27 Average Speed 76 | 87 105 56 35 116 Slowest Speed 350 | 120 120 56 48 350 Overloaded Moves . | . . . . . Propulsion Burnouts . | . . . . . Robots Hopped . | . . . . . Potential Cave-ins 2 | . . . 2 . Cave-ins Triggered . | . . . . . Exploration Rate (%) 36 | 4 34 82 27 36 Regions Visited 4 Branch Regions 1 Pre-discovered Areas . | . . . . . Known Exits Taken . | . . . . . Unknown Exits Taken 4 | 1 1 1 1 . Scrap Searched 2 | . . 2 . . Spaces Dug 5 | . . . 5 . Terrain Destroyed 136 | . . . 5 131 Melee . | . . . . . Projectile 5 | . . . 5 . AOE 131 | . . . . 131 Terrain Rammed . | . . . . . Walls Destroyed . | . . . . . Machines Disabled . | . . . . . Actions | -11 -10 -10 -9 -8 --------- Run | Yrd Mat Min Mat Mat Total 1377 | 85 157 477 236 422 Wait 74 | 8 . 33 4 29 Move 1159 | 64 140 429 206 320 Hop . | . . . . . Pick Up 17 | 3 1 1 4 8 Fast Attach 31 | 5 5 2 1 18 Attach 10 | . 1 . 3 6 Detach 1 | . . . . 1 Swap 7 | . 2 1 3 1 Drop 20 | . 4 2 7 7 Fire 51 | 5 4 5 5 32 Melee 5 | . . 2 3 . Ram 2 | . . 2 . . Kick . | . . . . . Crush . | . . . . . Escape Stasis . | . . . . . Rewire . | . . . . . Trap . | . . . . . Miscellaneous . | . . . . . Route ------- -11/Scrapyard -10/Materials (discovered 3 exits: *Mat / [*Min x2]) -10/Mines (discovered 2 exits: *Mat / [*Exi]) -9/Materials -8/Materials History --------- Turn | Location | Event 16 | -11/Scrapyard | Discovered new exit (range 15) 91 | -11/Scrapyard | Entered Materials 176 | -10/Materials | Discovered new exit (range 13) 245 | -10/Materials | Discovered new exit (range 16) 262 | -10/Materials | Discovered new exit (range 6) 265 | -10/Materials | Entered Mines 274 | -10/Mines | Learned Materials stockpile data 303 | -10/Mines | Assisted by bots powering up and referring to "LRC-V3" 321 | -10/Mines | Build established: Mutant 334 | -10/Mines | Deemed a non-threat by the Exiles lab entrance 335 | -10/Mines | Discovered new exit (range 5) 378 | -10/Mines | Discovered new exit (range 3) 522 | -10/Mines | Lost 3 allies 560 | -10/Mines | Entered Materials 560 | -9/Materials | Evolved 2 slots: Propulsion x2 678 | -9/Materials | Discovered new exit (range 3) 679 | -9/Materials | Entered another Materials area 679 | -8/Materials | Evolved 2 slots: Utility x2 792 | -8/Materials | Core integrity fell below 50% 822 | -8/Materials | Lost 10 parts (2p2n3u3w) 1211 | -8/Materials | Core integrity fell below 20% 1220 | -8/Materials | Destroyed by L-31 Rogue with Katana Last Messages --------------- payload. 01209_ G-50 Soldier unfolds itself. 01209_ L-31 Rogue unfolds itself. 01209_ G-47 Trooper unfolds itself. 01209_ I-25 Savior unfolds itself. 01210_ Fusion Modulator explodes. 01210_ Imp. Grenade Launcher destroyed. 01210_ Destroyed Imp. Grenade Launcher. 01210_ Deuterium Engine destroyed. 01210_ Destroyed Deuterium Engine. 01210_ Arm. Wheel destroyed. 01210_ Destroyed Arm. Wheel. 01210_ Arm. Wheel destroyed. 01210_ Destroyed Arm. Wheel. 01210_ Fusion Modulator explodes. 01210_ G-47 Trooper destroyed. 01210_ Y-45 Defender destroyed. 01211_ K-01 Serf collects debris. 01219_ Med. Armor Plating destroyed. 01220_ Gatling Laser destroyed. Map ----- +----------------------------------------------------+ | ?????????????????????????????????????????????????? | | ?????????????????????????????????????????????????? | | ?????????????????????????????????????????????????? | | ?????????????????????????????????????????????????? | | ?????????????????????????????????????????????????? | | ?????????????????????????????????????????????????? | | ?????????????????????????????????????????????????? | | ?????????????????????????????????????????????????? | | ?????????????????????????????????????????????????? | | ?????????????????????????????????????????????????? | | ?????????????????????????????????????????????????? | | ?????????????????????????????????????????????????? | | ?????????????????????????????????????????????????? | | ?????????????????????????????????????????????????? | | ?????????????????????????????????????????????????? | | ?????????????????????????????????????????????????? | | ?????????????????????????????????????????????????? | | ?????????????????????????????????????????????????? | | ?????????????????????????????????????????????????? | | ??????????????????????????? ?????????##????????? | | ??????????????????????????? ####### ????????? | | ??????????????????????????? ?????????? | | ??????????????????????????# ????????????? | | ??????????????????######??# ???????????????? | | ???????????????#### #### #??????????????????? | | ???????????????#;; @; #??????????????????? | | ???????????????#; l ; o#??????????????????? | | ??????????????##; ; #??????????????????? | | ??????????????# ; ; #??????????????????? | | ??????????????# ; ; #??????????????????? | | ??????????????# ; ; #??????????????????? | | ??????????????# ; ; #??????????????????? | | ??????????????##; g i #??????????????????? | | ???????????????#; g g #######????????????? | | ???????????????## #% # #????????????? | | ????????????????## [ # """ #????????????? | | ?????????????????##! ! [ ! # """ #????????????# | | ??????????????????# =%== # "S #????????????# | | ??????????????????# !!=%%* + """ #????????????# | | ?????????????????# %[ # "" #???????????+ | | ?????????????????# !=k% [ # #????????????# | | ?????????????????# % ###+###????????????# | | ?????????????????####! """ ## #?????????????## | | ?????????????????? ] """ = ## #?????????????## | | ???????????????? """ ## #???????# ""??## | | ???????????????? | ## #???????# """ ## | | ??????????????? ## #???????# # | | ???????????????################## #???????# # | | ????????????????????????????????# #???????# # | | ????????????????????????????????# #???????######## | +----------------------------------------------------+ Best States ------------- Heat Dissipation 41 Energy Generation 14 Energy Capacity 275 Matter Stores 300 Matter Capacity 300 Sight Range 18 Robot Scan Range 14 Terrain Scan Density 10 Armor Coverage 150 Power Shielding 66 Evasion (%) 64 Particle Charging 15 Offensive Hacking 10 Item Schematics ----------------- None Robot Schematics ------------------ None Fabricated ------------ Nothing Repaired ---------- Nothing Studied --------- None Alien Tech Used ----------------- None Achievements -------------- None Challenges ------------ None Game ------ Seed ScrapDynamicStrikerail Manual? 0 Play Time 00:29:35 Cumulative 25.6 hours Start 2025.11.21 @ 19:40:18 End 2025.11.21 @ 20:08:56 Sessions 1 Manual Loads 0 Difficulty Rogue Special Mode None Game No. 45 Rogue 45 Adventurer 0 Explorer 0 Win Type - Total 0 Types 0/0/0/0/0/0/0/0/0/0 Lore% 21 Gallery% 24 Achievement% 17 Wizard Run 0 Options --------- Layout 1 ASCII 0 Keyboard 0 Movement Mouse Keybinds 0 Fullscreen 2 Font 24/Smallcaps Map View 50x35 Zoom Use 0% Tactical HUD 1 Map Filters NONE Filters NONE Steam 1 RUN: 85fb2efa-1d52-48a2-8321-f0fa7b2d3bf5